bitfinex/quotes_BTCUSD_20260310
["timestamp","ask_amount","ask_price","bid_price","bid_amount"]
[1773103035801,0.00148,69161.0,69154.0,0.03288142]
[1773103036460,0.03148,69161.0,69155.0,0.07230135]
[1773103036680,0.03148,69161.0,69157.0,0.03288142]
[1773103037244,0.03,69161.0,69157.0,0.03280299]
[1773103037449,0.03148,69160.0,69157.0,0.03272456]
[1773103037642,0.03148,69160.0,69157.0,0.0325677]
[1773103037854,0.00148,69159.0,69157.0,0.0325677]
[1773103038253,0.00148,69159.0,69158.0,0.03272456]
[1773103038580,0.00148,69159.0,69154.0,0.0723021]
[1773103038776,0.03,69158.0,69147.0,0.07230965]
[1773103040677,0.03,69156.0,69143.0,0.10503846]
[1773103041238,0.03,69156.0,69144.0,0.03272456]
[1773103041440,0.03,69156.0,69146.0,0.03272456]
[1773103041647,0.00148,69155.0,69150.0,0.03272456]
[1773103041850,0.00148,69155.0,69152.0,0.03272456]
[1773103042055,0.10251737,69159.0,69152.0,0.03272456]
[1773103042253,0.00148,69158.0,69152.0,0.03272456]
[1773103042980,0.00148,69157.0,69151.0,0.0723047]
[1773103043566,0.00148,69157.0,69150.0,0.07230639]
[1773103045399,0.00148,69157.0,69149.0,0.10503178]
[1773103045832,0.03148,69157.0,69149.0,0.10503178]
[1773103046166,0.07228352,69174.0,69149.0,0.07230722]
[1773103046366,0.00048,69182.0,69152.0,0.22828523]
[1773103046367,0.07227769,69178.0,69152.0,0.22828523]
[1773103046593,0.00048,69182.0,69163.0,0.22828523]
[1773103046594,0.00148,69180.0,69163.0,0.22828523]
[1773103046807,0.03148,69180.0,69166.0,0.03272456]
[1773103047554,0.03,69178.0,69167.0,0.0722888]
[1773103047712,0.03011481,69178.0,69167.0,0.0722888]
[1773103048131,0.03011481,69178.0,69161.0,0.00148]
[1773103048132,0.03011481,69178.0,69161.0,0.07229483]
[1773103048333,0.25442736,69174.0,69159.0,0.07229619]
[1773103048502,0.00148,69173.0,69159.0,0.07229619]
[1773103049032,0.03,69172.0,69159.0,0.07229619]
[1773103050333,0.03,69170.0,69158.0,0.07229717]
[1773103050554,0.03,69166.0,69150.0,0.00023]
[1773103050754,0.03,69162.0,69150.0,0.07253629]
[1773103050980,0.03,69162.0,69151.0,0.01119052]
[1773103051152,0.03,69162.0,69151.0,0.22828523]
[1773103051357,0.03,69162.0,69152.0,0.01119052]
[1773103051555,0.00148,69161.0,69152.0,0.01119052]
[1773103051873,0.00148,69161.0,69151.0,0.22828523]
[1773103051874,0.00148,69160.0,69154.0,0.01119052]
[1773103052074,0.00148,69159.0,69156.0,0.01119052]
[1773103052302,0.03,69170.0,69150.0,0.08372681]
[1773103052452,0.03,69168.0,69150.0,0.07253629]
[1773103052659,0.03,69168.0,69151.0,0.01119052]
[1773103053076,0.00148,69167.0,69154.0,0.22828523]
[1773103053291,0.03,69168.0,69157.0,0.01119052]
[1773103053292,0.00148,69166.0,69157.0,0.01119052]
[1773103053463,0.07250396,69172.0,69161.0,0.01119052]
[1773103053671,0.07250396,69172.0,69151.0,0.00148]
[1773103053672,0.00036751,69172.0,69164.0,0.22743037]
[1773103053871,0.00148,69171.0,69165.0,0.01119052]
[1773103054299,0.00148,69170.0,69165.0,0.01119052]
[1773103054510,0.00148,69170.0,69166.0,0.07228985]
[1773103054714,0.0016275,69170.0,69166.0,0.07228985]
[1773103054866,0.30016416,69195.0,69166.0,0.07228985]
[1773103055065,0.30016416,69195.0,69167.0,0.01119052]
[1773103055066,0.00148,69177.0,69167.0,0.01119052]
[1773103055298,0.00148,69177.0,69166.0,0.29972022]
[1773103055299,0.00148,69177.0,69166.0,0.07228985]
[1773103055498,0.03148,69177.0,69166.0,0.07228985]
[1773103055912,0.03,69177.0,69167.0,0.22743037]
[1773103056088,0.00148,69176.0,69168.0,0.01119052]
[1773103056294,0.03,69177.0,69168.0,0.01119052]
[1773103056611,0.03,69175.0,69169.0,0.07228671]
[1773103056843,0.00022001,69179.0,69169.0,0.07228671]
[1773103057019,0.00022001,69179.0,69172.0,0.01119052]
[1773103057020,0.00148,69178.0,69172.0,0.01119052]
[1773103057701,0.00148,69177.0,69172.0,0.01119052]
[1773103057962,0.00148,69177.0,69173.0,0.01119052]
[1773103058102,0.00022001,69179.0,69173.0,0.01119052]
[1773103058313,0.00148,69178.0,69173.0,0.22735195]
[1773103058513,0.00022001,69186.0,69175.0,0.07228044]
[1773103058721,0.03148,69185.0,69176.0,0.01111209]
[1773103058921,0.00148,69184.0,69176.0,0.01111209]
[1773103059776,0.00022001,69182.0,69176.0,0.01111209]
[1773103060076,0.00148,69181.0,69178.0,0.01111209]
[1773103060616,0.00022001,69186.0,69179.0,0.07219783]
[1773103060841,0.00148,69185.0,69179.0,0.0721194]
[1773103061040,0.00148,69184.0,69180.0,0.01111209]
[1773103061963,0.03148,69184.0,69180.0,0.01111209]
[1773103062129,0.00148,69183.0,69180.0,0.01111209]
[1773103062544,0.03,69184.0,69180.0,0.01111209]
[1773103062806,0.00148,69182.0,69181.0,0.07227417]
[1773103063109,0.00148,69185.0,69182.0,0.01111209]
[1773103063405,0.00148,69185.0,69181.0,0.07227417]
[1773103063406,0.0003249,69196.0,69186.0,0.01111209]
[1773103063582,0.0003249,69196.0,69188.0,0.01111209]
[1773103063900,0.0003249,69196.0,69190.0,0.01111209]
[1773103063901,0.00148,69195.0,69190.0,0.01111209]
[1773103064105,0.00148,69195.0,69190.0,0.01102475]
[1773103064279,0.00148,69195.0,69183.0,0.01106842]
[1773103064280,0.00148,69194.0,69183.0,0.01106842]
[1773103064483,0.00148,69194.0,69180.0,0.07227417]
[1773103064711,0.22324392,69194.0,69180.0,0.07227417]
[1773103064906,0.03,69191.0,69178.0,0.07227671]
[1773103065119,0.03,69189.0,69174.0,0.07228149]
[1773103065267,0.00148,69188.0,69174.0,0.07228149]
[1773103065511,0.03,69185.0,69174.0,0.07228149]
[1773103066577,0.03,69179.0,69164.0,0.08336036]
[1773103066854,0.03,69179.0,69164.0,0.08347517]
[1773103066855,0.00148,69178.0,69164.0,0.08347517]
[1773103067049,0.03,69176.0,69164.0,0.07240675]
[1773103067844,0.03,69176.0,69164.0,0.00011481]
[1773103068017,0.03,69174.0,69164.0,0.00011481]
[1773103068220,0.26311693,69174.0,69158.0,0.07229818]
[1773103068422,0.26323166,69174.0,69158.0,0.07229818]
[1773103069216,0.03,69172.0,69155.0,0.02551191]
[1773103069420,0.00148,69171.0,69156.0,0.02551191]
[1773103070532,0.00148,69171.0,69156.0,0.23626505]
[1773103070734,0.00148,69171.0,69157.0,0.02551191]
[1773103070994,0.00148,69171.0,69158.0,0.02551191]
[1773103071748,0.03,69169.0,69158.0,0.07229717]
[1773103072462,0.03,69169.0,69158.0,0.09780908]
[1773103072661,0.03,69169.0,69159.0,0.02551191]
[1773103073486,0.03,69169.0,69155.0,0.07229821]
[1773103073487,0.03,69167.0,69154.0,0.07250216]
[1773103073667,0.03,69165.0,69154.0,0.07250227]
[1773103073862,0.03,69162.0,69153.0,0.07230268]
[1773103075018,0.00148,69164.0,69153.0,0.07230268]
[1773103075809,0.03,69163.0,69153.0,0.07230268]
[1773103077043,0.03,69162.0,69153.0,0.07230268]
[1773103078056,0.03,69163.0,69153.0,0.07230268]
[1773103078254,0.03,69163.0,69153.0,0.10064316]
[1773103079358,0.07239701,69174.0,69154.0,0.23626505]
[1773103079610,0.00148,69171.0,69156.0,0.02834048]
[1773103079978,0.07228567,69170.0,69157.0,0.07229926]
[1773103080180,0.07228567,69170.0,69158.0,0.02834048]
[1773103080385,0.03,69169.0,69158.0,0.02834048]
[1773103080816,0.03,69169.0,69158.0,0.23626505]
[1773103081021,0.03,69169.0,69159.0,0.02833926]
[1773103081370,0.03,69168.0,69157.0,0.07229926]
[1773103081778,0.03,69168.0,69157.0,0.10063852]
[1773103082085,0.03,69168.0,69158.0,0.02833926]
[1773103082291,0.07228574,69170.0,69158.0,0.02833926]
[1773103082292,0.03,69167.0,69158.0,0.02833926]
[1773103082750,0.07239634,69174.0,69157.0,0.30856431]
[1773103082751,0.00170001,69179.0,69159.0,0.02833926]
[1773103082910,0.00170001,69179.0,69162.0,0.23626505]
[1773103083117,0.00170001,69179.0,69165.0,0.02833868]
[1773103083283,0.03170001,69179.0,69167.0,0.02833868]
[1773103083725,0.03170001,69179.0,69167.0,0.2182909]
[1773103083891,0.03170001,69179.0,69168.0,0.02833868]
[1773103084340,0.03170001,69179.0,69169.0,0.07228671]
[1773103084551,0.03170001,69179.0,69170.0,0.02833868]
[1773103086105,0.03,69177.0,69169.0,0.07228671]
[1773103086315,0.03,69177.0,69170.0,0.02833717]
[1773103086470,0.03,69177.0,69171.0,0.07228462]
[1773103087106,0.03,69178.0,69171.0,0.07228462]
[1773103087776,0.10227806,69178.0,69170.0,0.07228497]
[1773103088105,0.03,69176.0,69164.0,0.07249131]
[1773103088444,0.03,69176.0,69164.0,0.0002]
[1773103088445,0.03,69174.0,69164.0,0.0002]
[1773103088640,0.00148,69173.0,69164.0,0.0002]
[1773103089048,0.00148,69173.0,69165.0,0.0288211]
[1773103090903,0.03,69171.0,69165.0,0.10111143]
[1773103091081,0.03,69171.0,69166.0,0.02882096]
[1773103091862,0.03,69172.0,69166.0,0.02882096]
[1773103092971,0.03148,69173.0,69166.0,0.10111031]
[1773103093646,0.10376254,69173.0,69166.0,0.10111031]
[1773103094762,0.10228053,69175.0,69166.0,0.07228935]
[1773103094974,0.10228053,69175.0,69167.0,0.02882096]
[1773103095766,0.03,69175.0,69167.0,0.02882096]
[1773103095955,0.10228092,69175.0,69167.0,0.02882096]
[1773103096157,0.03,69175.0,69167.0,0.02882096]
[1773103096356,0.12613664,69198.0,69170.0,0.2182909]
[1773103096357,0.03,69184.0,69170.0,0.2182909]
[1773103096568,0.03148,69184.0,69168.0,0.11295452]
[1773103096774,0.03,69182.0,69169.0,0.07376671]
[1773103097001,0.03,69182.0,69168.0,0.07080671]
[1773103097002,0.26756645,69182.0,69168.0,0.07080671]
[1773103097575,0.26756645,69182.0,69168.0,0.07228753]
[1773103097913,0.00022001,69179.0,69168.0,0.07228753]
[1773103098144,0.00148,69178.0,69168.0,0.07228753]
[1773103099131,0.03,69176.0,69167.0,0.07228812]
[1773103100657,0.03,69176.0,69164.0,0.0002]
[1773103100958,0.26756645,69176.0,69164.0,0.0002]
[1773103101181,0.03,69174.0,69164.0,0.0002]
[1773103101520,0.00148,69178.0,69164.0,0.0002]
[1773103101521,0.00148,69175.0,69167.0,0.2182909]
[1773103101819,0.00148,69175.0,69168.0,0.02882059]
[1773103102009,0.07227945,69176.0,69168.0,0.02882059]
[1773103102427,0.03,69175.0,69168.0,0.02882059]
[1773103104219,0.03,69174.0,69170.0,0.03568085]
[1773103104350,0.00170001,69179.0,69170.0,0.03568085]
[1773103104552,0.00170001,69179.0,69172.0,0.03568085]
[1773103104774,0.0739764,69179.0,69172.0,0.03568085]
[1773103104969,0.03,69178.0,69170.0,0.03568085]
[1773103106153,0.03022001,69179.0,69171.0,0.10796547]
[1773103107814,0.03022001,69179.0,69171.0,0.07228462]
[1773103107815,0.03022001,69178.0,69171.0,0.07228462]
[1773103108211,0.03022001,69178.0,69159.0,0.07241181]
[1773103108212,0.03,69176.0,69159.0,0.07241181]
[1773103108436,0.03,69172.0,69159.0,0.07241181]
[1773103109437,0.03,69171.0,69160.0,0.03568085]
[1773103110455,0.03,69170.0,69161.0,0.07229507]
[1773103110767,0.00148,69169.0,69161.0,0.07229507]
[1773103111700,0.00148,69169.0,69160.0,0.10797642]
[1773103112967,0.03,69167.0,69159.0,1.473e-05]
[1773103115072,0.03,69165.0,69159.0,1.473e-05]
[1773103115606,0.03,69165.0,69159.0,0.03225741]
[1773103116774,0.03,69165.0,69159.0,0.03245741]
[1773103117182,0.03,69163.0,69159.0,0.03245741]
[1773103117587,0.03,69163.0,69159.0,0.00021473]
[1773103119325,0.03,69161.0,69159.0,0.00021473]
[1773103120227,0.03,69161.0,69159.0,0.00010737]
[1773103121030,0.10229558,69161.0,69154.0,0.07250178]
[1773103121346,0.10229558,69161.0,69154.0,0.07211651]
[1773103121511,0.10229558,69161.0,69152.0,0.07250345]
[1773103121713,0.10229558,69161.0,69152.0,0.07250434]
[1773103123322,0.10229558,69161.0,69152.0,0.0002]
[1773103124664,0.10229558,69161.0,69150.0,0.00043]
[1773103125456,0.03,69160.0,69151.0,0.03224268]
[1773103125662,0.00148,69159.0,69153.0,0.03224268]
[1773103125880,0.03159473,69160.0,69153.0,0.03224268]
[1773103126476,0.03,69159.0,69153.0,0.03224268]
[1773103127196,0.03,69157.0,69152.0,0.0002]
[1773103127781,0.07229163,69165.0,69152.0,0.03754304]
[1773103128105,0.07229194,69164.0,69153.0,0.03734304]
[1773103128408,0.03,69163.0,69152.0,0.00031473]
[1773103128823,0.03,69161.0,69150.0,0.00043]
[1773103129016,0.24814562,69161.0,69150.0,0.00043]
[1773103129621,0.03,69159.0,69150.0,0.00043]
[1773103129817,0.00148,69158.0,69150.0,0.00043]
[1773103131725,0.03,69156.0,69150.0,0.00043]
[1773103132998,0.03,69156.0,69147.0,0.0002]
[1773103133204,0.24814562,69156.0,69145.0,1e-08]
[1773103133432,0.24814562,69156.0,69144.0,1e-08]
[1773103133626,0.03,69154.0,69144.0,1e-08]
[1773103133838,0.03,69154.0,69140.0,0.00025551]
[1773103134026,0.24814562,69154.0,69143.0,0.0002]
[1773103134686,0.24814562,69154.0,69140.0,0.00036966]
[1773103135051,0.24814562,69154.0,69140.0,0.07268664]
[1773103135397,0.03,69154.0,69141.0,0.0371259]
[1773103135750,0.00148,69156.0,69146.0,0.0371259]
[1773103135960,0.00148,69156.0,69147.0,0.0371259]
[1773103137831,0.07230135,69155.0,69147.0,0.10943513]
[1773103138718,0.07230135,69155.0,69148.0,0.0371259]
[1773103140317,0.07230135,69155.0,69144.0,0.07231265]
[1773103140657,0.07230135,69155.0,69145.0,0.0371259]
[1773103141080,0.07230135,69155.0,69148.0,0.0373259]
[1773103141677,0.07229471,69162.0,69148.0,0.0373259]
[1773103141877,0.00148,69161.0,69151.0,0.23049397]
[1773103142073,0.00148,69161.0,69154.0,0.0371259]
[1773103142996,0.07229471,69162.0,69154.0,0.0371259]
[1773103143210,0.07251404,69163.0,69154.0,0.0371259]
[1773103143211,0.00022001,69163.0,69154.0,0.0371259]
[1773103143373,0.07399348,69163.0,69154.0,0.0371259]
[1773103143939,0.07251348,69163.0,69154.0,0.0371259]
[1773103144152,0.07229067,69166.0,69156.0,0.0371259]
[1773103144296,0.00148,69165.0,69156.0,0.0371259]
[1773103144821,0.07229067,69166.0,69156.0,0.0371259]
[1773103144997,0.00148,69165.0,69156.0,0.0371259]
[1773103145399,0.00148,69164.0,69149.0,0.00148]
[1773103145603,0.00148,69164.0,69150.0,0.0368759]
[1773103146130,0.03,69162.0,69152.0,0.0368759]
[1773103146535,0.00022001,69167.0,69152.0,0.0368759]
[1773103146536,0.07250939,69167.0,69152.0,0.0368759]
[1773103146736,0.07229008,69166.0,69155.0,0.23866912]
[1773103147054,0.07229008,69166.0,69156.0,0.0368759]
[1773103147208,0.03,69165.0,69156.0,0.0368759]
[1773103148137,0.03,69163.0,69156.0,0.0368759]
[1773103148961,0.03,69163.0,69156.0,0.10917613]
[1773103150160,0.03,69161.0,69156.0,0.0368759]
[1773103150680,0.03,69161.0,69156.0,0.10917612]
[1773103150883,0.03,69161.0,69157.0,0.0368759]
[1773103151186,0.03,69160.0,69157.0,0.0368759]
[1773103151390,0.03,69160.0,69152.0,0.00019895]
[1773103152303,0.03,69159.0,69152.0,0.00019895]
[1773103153258,0.03,69164.0,69155.0,0.23866912]
[1773103153458,0.07228743,69169.0,69158.0,0.03775412]
[1773103153698,0.07228743,69169.0,69159.0,0.03775412]
[1773103153964,9.221e-05,69174.0,69163.0,0.03775412]
[1773103154156,9.221e-05,69174.0,69159.0,0.05578917]
[1773103154157,9.221e-05,69174.0,69165.0,0.03775412]
[1773103154361,9.221e-05,69174.0,69167.0,0.03775412]
[1773103154760,0.0301008,69176.0,69167.0,0.23866912]
[1773103154964,0.0301008,69176.0,69168.0,0.03775412]
[1773103155159,0.03021557,69176.0,69168.0,0.03775412]
[1773103155389,0.03021557,69176.0,69168.0,0.03760584]
[1773103156518,0.03021557,69176.0,69170.0,0.03767998]
[1773103157684,0.03,69175.0,69170.0,0.03767998]
[1773103158539,0.03,69175.0,69172.0,0.03767998]
[1773103158686,0.03,69174.0,69172.0,0.03767998]
[1773103159089,0.03,69174.0,69172.0,0.03753172]
[1773103159329,0.07226469,69191.0,69173.0,0.23866912]
[1773103159532,0.07226469,69191.0,69171.0,0.07228462]
[1773103159533,0.00148,69189.0,69176.0,0.23866912]
[1773103159733,0.03148,69189.0,69177.0,0.03908585]
[1773103159950,0.03148,69189.0,69171.0,0.07228462]
[1773103159951,0.03,69185.0,69171.0,0.07228462]
[1773103160413,0.07252139,69190.0,69175.0,0.07228044]
[1773103160629,0.07252139,69190.0,69177.0,0.23866912]
[1773103160830,0.00148,69189.0,69178.0,0.03760585]
[1773103161029,0.03148,69189.0,69178.0,0.03760585]
[1773103161608,0.03,69185.0,69175.0,0.00011477]
[1773103162447,0.03022001,69182.0,69175.0,0.00011477]
[1773103162660,0.03022001,69182.0,69175.0,0.03608937]
[1773103163497,0.1024934,69182.0,69175.0,0.03608937]
[1773103163699,0.03022001,69182.0,69175.0,0.03608937]
[1773103164103,0.07227302,69183.0,69175.0,0.03608937]
[1773103164304,0.03,69184.0,69175.0,0.03608937]
[1773103164921,0.03,69184.0,69176.0,0.0722794]
[1773103165116,0.03,69184.0,69177.0,0.03808998]
[1773103165730,0.03,69183.0,69177.0,0.03808998]
[1773103165898,0.00022001,69189.0,69177.0,0.03808998]
[1773103166170,0.07226282,69192.0,69181.0,0.03831233]
[1773103166334,0.00148,69194.0,69184.0,0.03831233]
[1773103166887,0.03,69194.0,69184.0,0.03831233]
[1773103167273,0.01093369,69198.0,69187.0,0.03831233]
[1773103167936,0.03,69197.0,69187.0,0.03831233]
[1773103168141,0.03,69197.0,69187.0,0.03816411]
[1773103168346,0.0002563,69204.0,69187.0,0.03816411]
[1773103168347,0.07224677,69208.0,69189.0,0.03823822]
[1773103168550,0.07224677,69208.0,69192.0,0.23866912]
[1773103168755,0.07224677,69208.0,69195.0,0.03816409]
[1773103168953,0.07224677,69208.0,69194.0,0.23866912]
[1773103168954,0.03015,69207.0,69197.0,0.03816409]
[1773103169160,0.03015,69207.0,69198.0,0.07225642]
[1773103169358,0.03,69206.0,69198.0,0.07225642]
[1773103169780,0.03,69206.0,69199.0,0.03816409]
[1773103170146,0.03060287,69206.0,69199.0,0.03816409]
[1773103170346,0.03,69205.0,69199.0,0.03816409]
[1773103170553,0.03,69205.0,69196.0,0.00148]
[1773103170758,0.03,69205.0,69195.0,0.00148]
[1773103170960,0.03,69205.0,69196.0,0.03816409]
[1773103171375,0.03,69205.0,69198.0,0.03816409]
[1773103171553,0.07372702,69209.0,69197.0,0.07225746]
[1773103171554,0.03,69209.0,69199.0,0.23866912]
[1773103171765,0.03011474,69209.0,69200.0,0.03816409]
[1773103172677,0.07249238,69218.0,69200.0,0.03816409]
[1773103172860,0.07249272,69218.0,69203.0,0.03816409]
[1773103173492,0.22419238,69217.0,69204.0,0.07225015]
[1773103173700,0.25419238,69216.0,69204.0,0.07373015]
[1773103174131,0.25419238,69216.0,69204.0,0.00148]
[1773103174319,0.25419238,69216.0,69200.0,0.11201263]
[1773103174558,0.25419238,69216.0,69202.0,0.03816409]
[1773103174741,0.03,69215.0,69202.0,0.03816409]
[1773103174942,0.00148,69214.0,69202.0,0.03816409]
[1773103175238,0.00148,69214.0,69203.0,0.03816409]
[1773103175853,0.03,69212.0,69204.0,0.11041424]
[1773103175993,0.03,69212.0,69202.0,0.07225015]
[1773103176188,0.25419238,69212.0,69203.0,0.07225105]
[1773103176797,0.25419238,69212.0,69204.0,0.0002]
[1773103177010,0.03,69212.0,69204.0,0.0002]
[1773103177439,0.03,69211.0,69205.0,0.03816409]
[1773103177811,0.03,69211.0,69205.0,0.11041302]
[1773103178448,0.10224382,69211.0,69205.0,0.03816409]
[1773103178566,0.03,69211.0,69205.0,0.03816409]
[1773103178814,0.10224315,69211.0,69205.0,0.11041317]
[1773103179875,0.10224315,69211.0,69205.0,0.03816409]
[1773103180206,0.03,69209.0,69200.0,0.00011474]
[1773103180410,0.03,69205.0,69197.0,0.07245723]
[1773103180618,0.03011466,69205.0,69197.0,0.07245723]
[1773103180817,0.03,69203.0,69196.0,0.07225749]
[1773103182061,0.03,69202.0,69193.0,0.11042487]
[1773103182738,0.03,69202.0,69194.0,0.03816409]
[1773103183229,0.03,69203.0,69194.0,0.03816409]
[1773103184230,0.03,69203.0,69195.0,0.11042364]
[1773103184434,0.03,69202.0,69195.0,0.11042364]
[1773103184732,0.03,69202.0,69195.0,0.03816409]
[1773103185039,0.03148,69202.0,69195.0,0.03798246]
[1773103185177,0.03148,69202.0,69191.0,0.11033671]
[1773103185380,0.03148,69202.0,69196.0,0.0002]
[1773103185923,0.0722512,69206.0,69192.0,0.03807328]
[1773103185924,0.2905478,69241.0,69192.0,0.03807328]
[1773103186177,0.2905478,69241.0,69201.0,0.03807328]
[1773103186178,0.22419238,69222.0,69201.0,0.03807328]
[1773103186379,0.22419238,69220.0,69202.0,0.11032552]
[1773103186635,0.22419238,69220.0,69203.0,0.03807328]
[1773103186838,0.27990858,69220.0,69200.0,0.07225337]
[1773103187129,0.26482372,69215.0,69201.0,0.03807328]
[1773103187328,0.00148,69214.0,69201.0,0.03807328]
[1773103187711,0.03,69213.0,69201.0,0.03807328]
[1773103188591,0.10224097,69213.0,69203.0,0.03807328]
[1773103188988,0.03148,69212.0,69203.0,0.03807328]
[1773103189297,0.00148,69211.0,69203.0,0.03807328]
[1773103189721,0.03148,69212.0,69203.0,0.03807328]
[1773103189929,0.03148,69212.0,69203.0,0.03777724]
[1773103190122,0.03,69214.0,69203.0,0.03777724]
[1773103190332,0.00148,69213.0,69203.0,0.03762923]
[1773103190504,0.10223972,69214.0,69203.0,0.03762923]
[1773103190706,0.00148,69213.0,69205.0,0.03785125]
[1773103191108,0.00148,69212.0,69205.0,0.03785125]
[1773103191745,0.23482372,69221.0,69205.0,0.03785125]
[1773103192054,0.00148,69220.0,69208.0,0.03785125]
[1773103192473,0.07223227,69222.0,69208.0,0.03785125]
[1773103192656,0.07223345,69220.0,69209.0,0.07224493]
[1773103192855,0.26482372,69219.0,69209.0,0.07224493]
[1773103193424,0.00022001,69216.0,69209.0,0.07224493]
[1773103193626,0.00148,69215.0,69209.0,0.07224493]
[1773103194457,0.00022001,69216.0,69209.0,0.07224493]
[1773103194678,0.00022001,69216.0,69208.0,0.07224493]
[1773103194679,0.00022001,69216.0,69208.0,0.03785125]
[1773103194847,0.00022001,69223.0,69208.0,0.03785125]
[1773103195047,0.00148,69222.0,69209.0,0.03785125]
[1773103195315,0.00148,69221.0,69210.0,0.03785125]
[1773103196758,0.00148,69221.0,69211.0,0.07224285]
[1773103196957,0.00148,69221.0,69212.0,0.03785125]
[1773103197362,0.00148,69228.0,69212.0,0.22157394]
[1773103197591,0.00366228,69237.0,69220.0,0.22157394]
[1773103197800,0.00366228,69237.0,69223.0,0.03785125]
[1773103197999,0.03366228,69237.0,69223.0,0.03785125]
[1773103198199,0.07244426,69244.0,69225.0,0.03785125]
[1773103198422,0.00148,69243.0,69228.0,0.22157394]
[1773103198622,0.00148,69243.0,69229.0,0.03785125]
[1773103198823,0.00011474,69243.0,69230.0,0.07222302]
[1773103199144,0.00148,69242.0,69231.0,0.03785125]
[1773103199500,0.03011474,69243.0,69231.0,0.03785125]
[1773103199739,0.00148,69242.0,69231.0,0.03785125]
[1773103200430,0.00148,69241.0,69231.0,0.03785125]
[1773103200597,0.03,69244.0,69231.0,0.03796599]
[1773103200805,0.00148,69243.0,69231.0,0.03796599]
[1773103201006,0.26482372,69242.0,69218.0,0.03785125]
[1773103201377,0.26493835,69242.0,69213.0,0.03785125]
[1773103201783,0.16707935,69240.0,69213.0,0.03785125]
[1773103201984,0.16707935,69240.0,69211.0,0.0002357]
[1773103201985,0.03,69235.0,69211.0,0.07247837]
[1773103202239,0.03,69231.0,69211.0,0.07247837]
[1773103202436,0.03,69225.0,69211.0,0.0002357]
[1773103202618,0.26482372,69223.0,69208.0,0.07224526]
[1773103202775,0.03,69220.0,69208.0,0.07224526]
[1773103202967,0.03,69218.0,69208.0,0.07224526]
[1773103203171,0.03,69216.0,69208.0,0.07224526]
[1773103203618,0.03,69216.0,69206.0,0.03785125]
[1773103203851,0.03,69212.0,69203.0,0.07245047]
[1773103204047,0.00148,69211.0,69203.0,0.0002]
[1773103204258,0.03,69210.0,69203.0,0.07257414]
[1773103204692,0.03,69210.0,69204.0,0.03785125]
[1773103204861,0.03148,69210.0,69204.0,0.03785125]
[1773103205222,0.03,69209.0,69205.0,0.036611]
[1773103205409,0.03,69209.0,69203.0,0.07257414]
[1773103206762,0.25678753,69209.0,69200.0,0.07810427]
[1773103206966,0.25678753,69209.0,69196.0,0.07245809]
[1773103207118,0.03,69207.0,69196.0,0.07284095]
[1773103207320,0.03,69205.0,69196.0,0.07284095]
[1773103207520,0.00148,69204.0,69196.0,0.00058286]
[1773103207926,0.00148,69204.0,69196.0,0.07284134]
[1773103208132,0.00148,69204.0,69196.0,0.10945234]
[1773103208333,0.03148,69204.0,69196.0,0.10945234]
[1773103208916,0.03148,69204.0,69197.0,0.036611]
[1773103209110,0.00148,69207.0,69199.0,0.036611]
[1773103209407,0.00148,69207.0,69201.0,0.036611]
[1773103209766,0.0722398,69214.0,69200.0,0.07225433]
[1773103209767,0.07222928,69224.0,69203.0,0.036611]
[1773103209985,0.00023,69225.0,69206.0,0.22111621]
[1773103210209,0.0724583,69225.0,69209.0,0.036611]
[1773103210416,0.00022001,69220.0,69211.0,0.036611]
[1773103210612,0.00022001,69220.0,69213.0,0.036611]
[1773103211303,0.00022001,69220.0,69214.0,0.07223972]
[1773103211520,0.00022001,69220.0,69215.0,0.036611]
[1773103213478,0.00022001,69220.0,69217.0,0.036611]
[1773103214821,0.03,69219.0,69211.0,0.07224194]
[1773103215049,0.03,69217.0,69201.0,0.07225329]
[1773103215251,0.03,69215.0,69202.0,0.11034288]
[1773103215477,0.03,69213.0,69204.0,0.07225015]
[1773103216602,0.03,69212.0,69204.0,0.07225015]
[1773103217578,0.10224285,69211.0,69204.0,0.07225015]
[1773103218007,0.03,69211.0,69204.0,0.07225015]
[1773103221110,0.03,69210.0,69204.0,0.07225015]
[1773103221721,0.03,69210.0,69203.0,0.07225015]
[1773103222122,0.22678753,69213.0,69203.0,0.07225015]
[1773103222349,0.07224258,69212.0,69203.0,0.07225015]
[1773103222920,0.22678753,69211.0,69203.0,0.07225015]
[1773103223274,0.22678753,69211.0,69202.0,0.07245154]
[1773103223275,0.07224389,69210.0,69202.0,0.07245176]
[1773103224686,0.22678753,69209.0,69202.0,0.0002]
[1773103225039,0.22678753,69209.0,69201.0,0.00038286]
[1773103225239,0.29903319,69209.0,69201.0,0.00038286]
[1773103225473,0.22678753,69208.0,69196.0,0.07245776]
[1773103225678,0.22716961,69208.0,69196.0,0.07245776]
[1773103226190,0.22716961,69208.0,69192.0,0.07374169]
[1773103226350,0.22716961,69208.0,69190.0,0.0002]
[1773103226563,0.27166588,69207.0,69182.0,0.00068]
[1773103226775,0.22678753,69206.0,69182.0,0.00068]
[1773103226981,0.22678753,69206.0,69182.0,0.07295285]
[1773103227419,0.22678753,69204.0,69182.0,0.07295285]
[1773103227571,0.22678753,69202.0,69182.0,0.00068]
[1773103227899,0.22678753,69202.0,69187.0,0.0002]
[1773103228116,0.22678753,69202.0,69182.0,0.00068]
[1773103228675,0.22678753,69202.0,69180.0,0.0002]
[1773103229291,0.07225329,69201.0,69180.0,0.0002]
[1773103229613,0.22678753,69200.0,69180.0,0.0002]
[1773103232336,0.03,69195.0,69180.0,0.03805125]
[1773103232539,0.03,69191.0,69180.0,0.0002]
[1773103235196,0.03,69189.0,69180.0,0.0002]
[1773103235373,0.00148,69188.0,69180.0,0.0002]
[1773103235588,0.00022001,69216.0,69180.0,0.0002]
[1773103235778,0.07262808,69208.0,69191.0,0.21473032]
[1773103235977,0.07262808,69208.0,69193.0,0.03785125]
[1773103236385,0.03,69207.0,69193.0,0.03785125]
[1773103237222,0.03,69205.0,69194.0,0.0722606]
[1773103237438,0.03,69205.0,69195.0,0.03785125]
[1773103237737,0.00148,69207.0,69196.0,0.03785125]
[1773103238267,0.03,69207.0,69196.0,0.03785125]
[1773103238923,0.00148,69211.0,69197.0,0.21473032]
[1773103239125,0.07224045,69214.0,69197.0,0.21473032]
[1773103239126,0.00148,69212.0,69200.0,0.03785125]